bitfinex/quotes_SOLUSD_20240718
["timestamp","ask_amount","ask_price","bid_price","bid_amount"]
[1721338086905,12.29,158.3,158.27,1.26349204]
[1721338087083,12.29,158.3,158.25,12.29]
[1721338087283,12.29,158.3,158.26,1.26349209]
[1721338087706,12.29,158.3,158.25,12.29]
[1721338089402,12.29,158.31,158.26,1.26349132]
[1721338089609,12.29,158.31,158.25,12.29]
[1721338090893,15.0356,158.36,158.28,12.29]
[1721338091088,12.29,158.33,158.26,9.48928927]
[1721338091294,12.29,158.33,158.28,12.29]
[1721338091493,15.0356,158.36,158.29,1.26324419]
[1721338091686,12.29,158.33,158.29,1.26324419]
[1721338092284,12.29,158.33,158.28,12.29]
[1721338092603,12.29,158.33,158.29,1.2631923]
[1721338092986,12.29,158.33,158.28,12.29]
[1721338093600,12.29,158.33,158.27,65.0]
[1721338093808,12.29,158.33,158.28,12.29]
[1721338095687,12.29,158.33,158.27,77.29]
[1721338098115,12.29,158.33,158.28,12.29]
[1721338099008,12.29,158.33,158.29,1.2632698]
[1721338099402,12.29,158.33,158.3,1.26326985]
[1721338100394,12.29,158.33,158.29,1.26319876]
[1721338101113,12.29,158.33,158.3,1.26319841]
[1721338101315,12.29,158.34,158.3,1.26319841]
[1721338102014,12.29,158.34,158.27,65.0]
[1721338102312,12.29,158.34,158.29,12.29]
[1721338102506,12.29,158.33,158.28,13.55319899]
[1721338105817,12.29,158.33,158.28,12.29]
[1721338107812,12.29,158.33,158.29,1.26320019]
[1721338108022,12.29,158.33,158.3,1.26319989]
[1721338109425,12.29,158.33,158.29,1.2632009]
[1721338109596,12.29,158.33,158.3,1.26320053]
[1721338110495,12.29,158.33,158.28,12.29]
[1721338110693,12.29,158.33,158.29,1.26320133]
[1721338110897,15.0356,158.36,158.3,1.26320132]
[1721338111119,12.29,158.34,158.3,1.26320132]
[1721338111322,12.29,158.33,158.28,12.29]
[1721338112025,15.0356,158.36,158.28,12.29]
[1721338112229,12.29,158.33,158.28,12.29]
[1721338113729,12.29,158.32,158.24,38.95630229]
[1721338113897,12.29,158.31,158.25,20.0]
[1721338114106,12.29,158.31,158.26,12.29]
[1721338114307,12.29,158.31,158.27,20.0]
[1721338119334,12.29,158.32,158.27,20.0]
[1721338120636,12.29,158.32,158.25,20.0]
[1721338120936,12.29,158.33,158.27,12.29]
[1721338121320,12.29,158.33,158.28,1.26335482]
[1721338121724,12.29,158.33,158.27,12.29]
[1721338122038,12.29,158.33,158.28,1.26331801]
[1721338122227,12.29,158.33,158.27,12.29]
[1721338122425,12.29,158.33,158.28,12.29]
[1721338123330,12.29,158.33,158.27,12.29]
[1721338123916,12.29,158.33,158.28,1.26329607]
[1721338126239,12.29,158.34,158.28,13.55329607]
[1721338126925,12.29,158.33,158.28,1.26329607]
[1721338127738,12.29,158.33,158.26,45.0]
[1721338128049,12.29,158.33,158.27,32.29]
[1721338129432,15.0356,158.36,158.27,32.29]
[1721338129747,12.29,158.33,158.27,32.29]
[1721338132148,12.29,158.34,158.28,1.26323824]
[1721338132325,15.0356,158.36,158.27,32.29]
[1721338132937,7.3913226,158.39,158.31,12.29]
[1721338133251,0.8106226,158.39,158.33,12.29]
[1721338133553,12.29,158.38,158.34,1.26290826]
[1721338134242,0.8106226,158.39,158.34,1.26290826]
[1721338134440,12.29,158.38,158.34,1.26290826]
[1721338134949,12.29,158.37,158.34,1.26290826]
[1721338135144,12.29,158.37,158.35,1.26286354]
[1721338135346,12.29,158.38,158.33,13.55286368]
[1721338136244,12.29,158.38,158.34,1.26286144]
[1721338137850,12.29,158.37,158.34,1.26286144]
[1721338138053,12.29,158.37,158.32,12.29]
[1721338138429,12.29,158.37,158.29,23.31803179]
[1721338138430,12.29,158.37,158.31,12.29]
[1721338139454,12.29,158.37,158.32,13.55292642]
[1721338139628,12.29,158.37,158.33,1.26292293]
[1721338140627,12.29,158.37,158.32,12.29]
[1721338141149,12.29,158.37,158.33,1.26292611]
[1721338141735,12.29,158.37,158.33,1.26292664]
[1721338142158,12.29,158.37,158.32,12.29]
[1721338142527,12.29,158.37,158.33,1.26292631]
[1721338145148,0.8106226,158.39,158.33,13.55292631]
[1721338145464,12.29,158.38,158.34,1.26280786]
[1721338146253,0.8106226,158.39,158.34,13.55280786]
[1721338146561,13.1006226,158.39,158.35,1.26274738]
[1721338146736,0.8106226,158.39,158.36,1.2627732]
[1721338152160,0.8106226,158.39,158.36,13.5527732]
[1721338152665,0.8106226,158.39,158.37,1.26267929]
[1721338153038,0.8106226,158.39,158.33,6.3991]
[1721338153242,0.8106226,158.39,158.34,66.26269214]
[1721338154058,0.8106226,158.39,158.35,12.29]
[1721338154359,0.8106226,158.39,158.36,1.26271086]
[1721338155352,0.8106226,158.39,158.36,13.55271086]
[1721338156856,0.8106226,158.39,158.36,12.29]
[1721338157976,0.8106226,158.39,158.37,1.26256912]
[1721338159359,0.8106226,158.39,158.37,13.55256912]
[1721338159539,0.8106226,158.39,158.38,1.26256671]
[1721338162558,0.8106226,158.39,158.37,12.29]
[1721338163460,0.8106226,158.39,158.38,1.26257009]
[1721338167077,0.8106226,158.39,158.37,12.29]
[1721338169370,0.8106226,158.39,158.36,12.29]
[1721338169577,0.8106226,158.39,158.35,1.26257314]
[1721338169871,0.8106226,158.39,158.36,13.55272721]
[1721338173467,0.8106226,158.39,158.36,12.29]
[1721338176683,0.8106226,158.39,158.37,13.55257477]
[1721338177281,0.8106226,158.39,158.37,12.29]
[1721338178585,0.8106226,158.39,158.38,1.26257585]
[1721338179685,0.8106226,158.39,158.35,1.26257491]
[1721338179883,0.8106226,158.39,158.35,46.26257491]
[1721338183890,0.8106226,158.39,158.35,45.0]
[1721338188163,0.8106226,158.39,158.36,1.26254054]
[1721338188365,0.8106226,158.39,158.36,13.55254054]
[1721338188570,0.8106226,158.39,158.36,1.26254054]
[1721338188787,0.8106226,158.39,158.35,12.29]
[1721338190688,12.29,158.36,158.31,9.48192384]
[1721338190888,16.1059,158.38,158.3,6.58701444]
[1721338191198,16.1059,158.38,158.3,12.29]
[1721338192678,12.29,158.35,158.3,12.29]
[1721338197283,12.29,158.36,158.3,12.29]
[1721338197883,12.29,158.36,158.31,1.2631441]
[1721338198092,28.3959,158.38,158.32,12.29]
[1721338198302,28.3959,158.38,158.33,13.55288068]
[1721338198899,28.3959,158.38,158.33,12.29]
[1721338199482,12.29,158.38,158.34,1.26289427]
[1721338200098,12.29,158.38,158.34,13.55289427]
[1721338200383,12.29,158.38,158.35,1.26285533]
[1721338200602,13.1006226,158.39,158.35,1.26285533]
[1721338200900,12.29,158.37,158.3,9.4837876]
[1721338201107,12.29,158.38,158.31,66.26298005]
[1721338201398,12.29,158.38,158.32,12.29]
[1721338201706,12.29,158.38,158.33,13.55290812]
[1721338201890,12.29,158.38,158.33,12.29]
[1721338202406,12.29,158.38,158.34,1.26291028]
[1721338203378,12.29,158.38,158.32,12.29]
[1721338203577,0.8106226,158.39,158.33,12.29]
[1721338203810,12.29,158.38,158.31,65.0]
[1721338203984,12.29,158.38,158.33,12.29]
[1721338204494,13.1006226,158.39,158.34,12.29]
[1721338204879,12.29,158.38,158.33,12.29]
[1721338205381,13.1006226,158.39,158.34,12.29]
[1721338206115,0.8106226,158.39,158.34,12.29]
[1721338206315,13.1006226,158.39,158.31,65.0]
[1721338206612,13.1006226,158.39,158.34,12.29]
[1721338206791,0.8106226,158.39,158.35,12.29]
[1721338207193,0.8106226,158.39,158.36,12.29]
[1721338208723,0.8106226,158.39,158.37,12.29]
[1721338210413,0.8106226,158.39,158.36,12.29]
[1721338211518,0.8106226,158.39,158.32,22.07843166]
[1721338211519,0.8106226,158.39,158.37,12.29]
[1721338213709,0.8106226,158.39,158.32,37.47895448]
[1721338213890,0.8106226,158.39,158.38,12.29]
[1721338214916,0.8106226,158.39,158.33,52.68476837]
[1721338215112,0.8106226,158.39,158.37,12.29]
[1721338216219,0.8106226,158.39,158.33,52.68476837]
[1721338216417,0.8106226,158.39,158.37,12.29]
[1721338220035,0.8106226,158.39,158.33,52.68476837]
[1721338220235,0.8106226,158.39,158.34,20.0]
[1721338220439,0.8106226,158.39,158.34,32.29]
[1721338220608,13.1006226,158.39,158.34,32.29]
[1721338222221,0.8106226,158.39,158.34,32.29]
[1721338222423,13.1006226,158.39,158.34,32.29]
[1721338222840,0.8106226,158.39,158.34,32.29]
[1721338224337,0.8106226,158.39,158.35,12.29]
[1721338227739,0.8106226,158.39,158.34,20.0]
[1721338227944,13.1006226,158.39,158.33,45.0]
[1721338228120,12.29,158.37,158.32,12.29]
[1721338228945,12.29,158.38,158.33,12.29]
[1721338230635,27.4045,158.37,158.29,7.51476837]
[1721338230849,27.4045,158.37,158.32,12.29]
[1721338231143,15.1145,158.37,158.32,12.29]
[1721338231362,27.4045,158.37,158.32,12.29]
[1721338231520,15.1145,158.37,158.33,12.29]
[1721338237722,15.1145,158.37,158.35,12.29]
[1721338238039,15.1145,158.37,158.34,12.29]
[1721338239051,15.1145,158.37,158.31,9.48431119]
[1721338239353,15.1145,158.37,158.34,12.29]
[1721338241948,0.8106226,158.39,158.36,12.29]
[1721338242152,0.8106226,158.39,158.38,12.29]
[1721338246757,0.8106226,158.39,158.38,12.25011487]
[1721338247333,0.8106226,158.39,158.37,12.29]
[1721338247652,0.8106226,158.39,158.38,13.5525859]
[1721338247955,0.8106226,158.39,158.35,45.0]
[1721338248256,0.8106226,158.39,158.37,12.29]
[1721338248442,0.8106226,158.39,158.38,1.26257138]
[1721338249852,0.8106226,158.39,158.38,13.55257138]
[1721338250054,0.8106226,158.39,158.38,12.29]
[1721338253231,0.8106226,158.39,158.38,32.29]
[1721338253434,0.8106226,158.39,158.38,20.0]
[1721338253738,0.8106226,158.39,158.38,12.29]
[1721338253938,0.8106226,158.39,158.38,32.29]
[1721338261944,0.8106226,158.39,158.38,20.0]
[1721338262143,0.8106226,158.39,158.38,12.29]
[1721338262361,0.8106226,158.39,158.38,32.29]
[1721338263463,0.8106226,158.39,158.38,20.0]
[1721338263658,0.8106226,158.39,158.38,57.29]
[1721338263845,0.8106226,158.39,158.38,77.29]
[1721338267170,0.8106226,158.39,158.38,57.29]
[1721338267346,0.8106226,158.39,158.38,77.29]
[1721338272269,13.1006226,158.39,158.34,12.29]
[1721338272472,13.1006226,158.39,158.32,0.30553179]
[1721338272642,13.1006226,158.39,158.34,12.29]
[1721338273668,0.8106226,158.39,158.34,12.29]
[1721338273867,0.8106226,158.39,158.35,20.0]
[1721338274774,0.8106226,158.39,158.35,32.29]
[1721338278176,0.8106226,158.39,158.36,12.29]
[1721338280656,0.8106226,158.39,158.35,20.0]
[1721338280856,0.8106226,158.39,158.34,20.0]
[1721338282386,0.8106226,158.39,158.35,12.29]
[1721338282756,12.29,158.38,158.34,20.0]
[1721338283100,0.8106226,158.39,158.34,32.29]
[1721338283461,13.1006226,158.39,158.34,32.29]
[1721338283879,13.1006226,158.39,158.34,20.0]
[1721338284188,13.1006226,158.39,158.33,32.29]
[1721338284765,13.1006226,158.39,158.33,41.67025976]
[1721338285618,13.1006226,158.39,158.34,12.29]
[1721338286099,13.1006226,158.39,158.33,20.0]
[1721338286100,12.29,158.37,158.33,20.0]
[1721338286402,28.1769,158.38,158.33,32.29]
[1721338286603,28.1769,158.38,158.33,12.29]
[1721338287701,15.8869,158.38,158.33,12.29]
[1721338292502,15.8869,158.38,158.32,9.38780681]
[1721338292804,28.1769,158.38,158.33,12.29]
[1721338293907,28.1769,158.38,158.33,11.79]
[1721338296613,28.1769,158.38,158.32,21.6776332]
[1721338298017,28.1769,158.38,158.32,21.67633886]
[1721338299711,28.1769,158.38,158.33,12.29]
[1721338301690,15.8869,158.38,158.33,12.29]
[1721338302196,28.1769,158.38,158.33,12.29]
[1721338303709,15.8869,158.38,158.33,12.29]
[1721338303914,15.8869,158.38,158.34,12.29]
[1721338304210,15.8869,158.38,158.35,12.29]
[1721338307531,15.8869,158.38,158.34,12.29]
[1721338308316,12.29,158.37,158.32,12.29]
[1721338308529,28.1769,158.38,158.33,12.29]
[1721338311325,15.8869,158.38,158.33,12.29]
[1721338317296,15.8869,158.38,158.33,21.68441214]
[1721338318333,15.8869,158.38,158.33,21.68744331]
[1721338320004,15.8869,158.38,158.33,12.29]
[1721338320405,15.8869,158.38,158.33,21.68744331]
[1721338320618,15.8869,158.38,158.33,12.29]
[1721338320820,15.8869,158.38,158.33,21.68744331]
[1721338321526,15.8869,158.38,158.33,12.29]
[1721338322403,15.8869,158.38,158.33,21.68137396]
[1721338323838,15.8869,158.38,158.33,12.29]
[1721338324930,15.8869,158.38,158.32,9.39137396]
[1721338325135,28.1769,158.38,158.32,21.68198536]
[1721338326735,28.1769,158.38,158.33,12.29]
[1721338329446,28.1769,158.38,158.32,9.39196303]
[1721338329649,28.1769,158.38,158.32,21.68196303]
[1721338331631,28.1769,158.38,158.33,9.39196303]
[1721338331947,28.1769,158.38,158.32,21.68196303]
[1721338332445,15.8869,158.38,158.33,21.68196303]
[1721338332619,15.8869,158.38,158.33,12.29]
[1721338333347,15.8869,158.38,158.33,21.68196303]
[1721338333532,15.8869,158.38,158.33,12.29]
[1721338334546,15.8869,158.38,158.33,21.68196303]
[1721338334747,15.8869,158.38,158.33,12.29]
[1721338334919,15.8869,158.38,158.33,21.68196303]
[1721338335321,15.8869,158.38,158.33,12.29]
[1721338335821,12.29,158.35,158.32,9.39155755]
[1721338336023,12.29,158.36,158.32,9.39155755]
[1721338336330,12.29,158.35,158.32,9.39155755]
[1721338337028,12.29,158.35,158.3,12.29]
[1721338337234,12.29,158.35,158.32,9.3918156]
[1721338338528,12.29,158.35,158.31,29.3918156]
[1721338338728,12.29,158.35,158.31,20.0]
[1721338338941,12.29,158.35,158.31,29.39139471]
[1721338342231,15.8869,158.38,158.31,29.38921055]
[1721338342425,12.29,158.36,158.31,29.38921055]
[1721338343631,12.29,158.36,158.31,41.67921055]
[1721338344634,15.8869,158.38,158.31,41.67910368]
[1721338344828,15.8869,158.38,158.31,41.67901394]
[1721338345643,15.8869,158.38,158.31,29.38901394]
[1721338348854,12.29,158.36,158.31,29.38901394]
[1721338349049,12.29,158.36,158.31,20.0]
[1721338349250,15.8869,158.38,158.31,9.38867996]
[1721338349564,12.29,158.35,158.3,9.38867996]
[1721338349754,12.29,158.35,158.31,20.0]
[1721338352975,12.29,158.35,158.31,29.38550139]
[1721338355554,12.29,158.35,158.31,20.0]
[1721338364792,15.8869,158.38,158.31,20.0]
[1721338365088,12.29,158.35,158.31,20.0]
[1721338369078,12.29,158.35,158.31,29.38981566]
[1721338369789,12.29,158.35,158.31,29.38967324]
[1721338370581,12.29,158.35,158.31,20.0]
[1721338370779,12.29,158.35,158.31,29.38967324]
[1721338372491,12.29,158.36,158.31,29.38967324]
[1721338373092,12.29,158.36,158.31,29.38796129]
[1721338376175,12.29,158.35,158.31,29.38796129]
[1721338376404,12.29,158.35,158.31,29.38880687]
[1721338378380,12.29,158.33,158.3,9.38880687]
[1721338378579,12.29,158.33,158.29,9.38880687]
[1721338379888,12.29,158.33,158.29,9.39208326]
[1721338380379,12.29,158.32,158.28,9.39208326]
[1721338381101,12.29,158.32,158.29,9.39208326]
[1721338381289,12.29,158.32,158.28,9.39208326]
[1721338381514,12.29,158.33,158.28,9.39208326]
[1721338381883,12.29,158.32,158.28,9.39208326]
[1721338382502,12.29,158.31,158.28,9.39208326]
[1721338382691,12.29,158.3,158.27,9.39208326]
[1721338383202,12.29,158.28,158.27,9.39376725]
[1721338383406,12.29,158.28,158.23,9.39376725]
[1721338383579,12.29,158.26,158.22,9.40031083]
[1721338384288,12.29,158.26,158.16,21.69031083]
[1721338384289,12.29,158.23,158.16,21.69031083]
[1721338384507,12.29,158.22,158.17,12.29]
[1721338384707,12.29,158.23,158.18,12.29]
[1721338385006,16.3671,158.29,158.2,12.29]
[1721338385176,12.29,158.25,158.19,12.29]
[1721338385780,12.29,158.24,158.19,12.29]
[1721338386202,12.29,158.24,158.18,28.5787]
[1721338386409,12.29,158.23,158.19,20.0]
[1721338402393,12.29,158.25,158.2,12.29]
[1721338402800,12.29,158.26,158.2,12.29]
[1721338403192,12.29,158.25,158.2,12.29]
[1721338403915,12.29,158.25,158.19,20.0]
[1721338403916,12.29,158.25,158.19,32.29]
[1721338404506,12.29,158.25,158.2,12.29]
[1721338406998,16.3671,158.29,158.2,12.29]
[1721338407211,12.29,158.25,158.2,12.29]
[1721338408697,16.3671,158.29,158.2,12.29]
[1721338409014,12.29,158.25,158.2,12.29]
[1721338409907,12.29,158.25,158.19,32.29]
[1721338410817,16.3671,158.29,158.2,12.29]
[1721338410992,12.29,158.25,158.2,12.29]
[1721338411325,12.29,158.25,158.23,4.72905309]
[1721338413321,12.29,158.26,158.23,4.72905309]
[1721338417136,16.3671,158.29,158.23,4.72905309]
[1721338417307,12.29,158.26,158.23,4.72905309]
[1721338418020,12.29,158.25,158.23,4.72905309]
[1721338418818,12.29,158.26,158.23,4.72905309]
[1721338419021,12.29,158.25,158.23,4.72905309]
[1721338419327,12.29,158.26,158.23,4.72905309]
[1721338421813,12.29,158.25,158.23,4.72905309]
[1721338422824,12.29,158.25,158.24,4.72905309]
[1721338423246,12.29,158.25,158.21,20.0]
[1721338425624,12.29,158.25,158.2,12.29]
[1721338425833,12.29,158.25,158.21,20.0]
[1721338430140,12.29,158.25,158.2,21.69455628]
[1721338430513,12.29,158.25,158.2,12.29]
[1721338431115,12.29,158.25,158.19,9.40403133]
[1721338431419,12.29,158.25,158.2,20.0]
[1721338432917,12.29,158.25,158.21,1.26386606]
[1721338434938,12.29,158.25,158.2,20.0]
[1721338436113,12.29,158.25,158.2,41.69798895]
[1721338437024,16.3671,158.29,158.2,41.69798895]
[1721338437226,16.3671,158.29,158.22,12.29]
[1721338437432,16.3671,158.29,158.23,1.26365553]
[1721338437433,12.29,158.28,158.23,1.26365553]
[1721338437647,12.29,158.28,158.24,1.26366156]
[1721338438325,12.29,158.28,158.25,4.72845542]
[1721338443220,16.3671,158.29,158.25,4.72845542]
[1721338443418,12.29,158.28,158.25,4.72845542]
[1721338444042,16.3671,158.29,158.25,4.72845542]
[1721338444242,12.29,158.28,158.25,4.72845542]
[1721338445133,16.3671,158.29,158.25,4.72845542]
[1721338445453,12.29,158.28,158.25,4.72845542]
[1721338447144,15.7845,158.33,158.25,4.72845542]
[1721338447352,12.29,158.29,158.25,4.72845542]
[1721338450342,15.7845,158.33,158.25,4.72845542]
[1721338450734,12.29,158.3,158.26,1.26354475]
[1721338450923,12.29,158.31,158.26,1.26354475]
[1721338451732,15.7845,158.33,158.26,1.26354475]
[1721338451929,12.29,158.31,158.26,12.29]
[1721338452856,12.29,158.31,158.3,4.72845542]
[1721338453455,12.29,158.31,158.26,12.29]
[1721338455140,15.7845,158.33,158.26,12.29]
[1721338455333,12.29,158.32,158.27,57.29]
[1721338455533,12.29,158.32,158.27,45.0]
[1721338461671,12.29,158.33,158.26,9.40781235]
[1721338461833,12.29,158.32,158.26,12.29]
[1721338463876,12.29,158.32,158.27,12.29]
[1721338467255,12.29,158.33,158.23,22.3779]
[1721338467563,12.29,158.33,158.27,12.29]
[1721338468346,12.29,158.32,158.27,12.29]
[1721338472160,12.29,158.32,158.26,12.29]
[1721338472385,12.29,158.32,158.27,12.29]
[1721338473778,12.29,158.32,158.24,45.0]
[1721338473983,12.29,158.32,158.25,20.0]
[1721338474282,12.29,158.32,158.27,12.29]
[1721338477276,12.29,158.32,158.26,12.29]
[1721338479798,12.29,158.32,158.25,20.0]
[1721338480101,12.29,158.32,158.27,12.29]
[1721338482698,12.29,158.32,158.26,12.29]
[1721338485104,22.4205,158.3,158.24,9.41039218]
[1721338485309,22.4205,158.3,158.21,1.09603154]
[1721338485310,12.29,158.25,158.21,1.09603154]
[1721338485479,12.29,158.24,158.21,1.09603154]
[1721338485682,12.29,158.24,158.19,12.29]
[1721338488183,12.29,158.23,158.18,12.29]
[1721338488403,12.29,158.23,158.19,20.0]
[1721338490383,12.29,158.23,158.18,12.29]
[1721338490584,27.3829,158.24,158.19,20.0]
[1721338494703,12.29,158.22,158.15,7.54943503]
[1721338494908,12.29,158.22,158.17,12.29]
[1721338495109,12.29,158.22,158.18,20.0]
[1721338501686,12.29,158.22,158.15,7.54943503]
[1721338501892,12.29,158.21,158.16,12.29]
[1721338502612,12.29,158.2,158.15,12.29]
[1721338502817,12.29,158.2,158.16,20.0]
[1721338504621,33.4634,158.24,158.13,13.25208567]
[1721338504798,12.29,158.19,158.14,20.0]
[1721338505120,12.29,158.2,158.15,12.29]
[1721338505295,12.29,158.2,158.14,12.29]
[1721338505499,12.29,158.19,158.14,12.29]
[1721338505711,45.0,158.23,158.15,12.29]
[1721338505902,12.29,158.21,158.15,12.29]
[1721338506210,12.29,158.2,158.14,12.29]
[1721338506385,12.29,158.19,158.14,12.29]
[1721338507014,33.4634,158.24,158.14,12.29]
[1721338507015,21.1734,158.24,158.14,12.29]
[1721338507195,12.29,158.2,158.14,12.29]
[1721338507811,45.0,158.23,158.11,7.54943503]
[1721338507812,12.29,158.19,158.11,7.54943503]
[1721338508013,12.29,158.17,158.12,32.29]
[1721338508215,12.29,158.18,158.13,12.29]
[1721338508516,12.29,158.18,158.14,20.0]
[1721338508714,28.8076,158.19,158.14,20.0]
[1721338509289,12.29,158.18,158.14,20.0]
[1721338510417,12.29,158.17,158.11,12.29]
[1721338510591,22.5732,158.19,158.11,12.29]
[1721338510795,22.5732,158.19,158.12,12.29]
[1721338511097,45.0,158.23,158.14,12.29]
[1721338511098,12.29,158.2,158.14,12.29]
[1721338511816,12.29,158.19,158.11,16.1299]
[1721338512014,12.29,158.19,158.13,12.29]
[1721338513022,12.29,158.19,158.14,12.29]
[1721338514222,12.29,158.19,158.11,16.1299]
[1721338514418,12.29,158.19,158.12,65.0]
[1721338514627,12.29,158.19,158.14,12.29]
[1721338516206,12.29,158.19,158.12,65.0]
[1721338516610,12.29,158.19,158.14,12.29]
[1721338518239,15.4812,158.23,158.14,12.29]
[1721338518534,12.29,158.2,158.14,12.29]
[1721338519933,15.4812,158.23,158.14,12.29]
[1721338520103,12.29,158.2,158.15,12.29]
[1721338521934,12.29,158.2,158.12,20.0]
[1721338522115,12.29,158.2,158.15,12.29]
[1721338522431,15.3731,158.19,158.12,20.0]
[1721338522609,15.3731,158.19,158.11,20.0]
[1721338522610,12.29,158.18,158.11,20.0]
[1721338522810,12.29,158.18,158.13,12.29]
[1721338523015,12.29,158.18,158.14,20.0]
[1721338524122,12.29,158.18,158.13,12.29]
[1721338524340,12.29,158.18,158.12,12.29]
[1721338524517,12.29,158.18,158.13,20.0]
[1721338525539,12.29,158.18,158.13,12.29]
[1721338527536,15.3731,158.19,158.13,12.29]
[1721338527731,15.3731,158.19,158.14,12.29]
[1721338528834,27.6631,158.19,158.14,12.29]
[1721338529323,27.6631,158.19,158.13,12.29]
[1721338529637,12.29,158.18,158.13,12.29]
[1721338530438,27.6631,158.19,158.13,12.29]
[1721338532030,15.3731,158.19,158.13,12.29]
[1721338532235,15.3731,158.19,158.14,12.29]
[1721338533010,27.6631,158.19,158.13,9.41055378]
[1721338533212,27.6631,158.19,158.13,12.29]
[1721338533937,15.3731,158.19,158.14,12.29]
[1721338534644,15.3731,158.19,158.13,9.41055378]
[1721338534832,15.3731,158.19,158.14,12.29]
[1721338537540,15.3731,158.19,158.15,12.29]
[1721338540653,15.3731,158.19,158.14,21.70005873]
[1721338541664,15.3731,158.19,158.14,21.70099885]
[1721338541954,27.6631,158.19,158.14,9.41099885]
[1721338544952,27.6631,158.19,158.13,12.29]
[1721338545171,27.6631,158.19,158.14,9.4127004]
[1721338547164,27.6631,158.19,158.14,9.41427946]
[1721338547349,15.3731,158.19,158.14,9.41427946]
[1721338548472,15.3731,158.19,158.14,9.41405173]
[1721338549146,15.3731,158.19,158.15,9.41405173]
[1721338550476,15.3731,158.19,158.15,21.70405173]
[1721338551363,15.3731,158.19,158.17,12.29]
[1721338552452,15.3731,158.19,158.16,21.7000503]
[1721338552959,15.3731,158.19,158.16,12.29]
[1721338554071,15.3731,158.19,158.16,21.7000503]
[1721338554565,15.3731,158.19,158.16,12.29]
[1721338554775,15.3731,158.19,158.16,21.7000503]
[1721338555072,15.3731,158.19,158.16,21.70161277]
[1721338555258,15.3731,158.19,158.16,12.29]
[1721338555465,15.3731,158.19,158.16,21.70161277]
[1721338556356,15.3731,158.19,158.16,12.29]
[1721338556756,15.3731,158.19,158.16,21.70161277]
[1721338557680,15.3731,158.19,158.16,12.29]
[1721338558390,15.3731,158.19,158.16,21.70138429]
[1721338558678,15.3731,158.19,158.16,12.29]
[1721338559080,15.3731,158.19,158.16,21.70138429]
[1721338559692,15.3731,158.19,158.16,12.29]
[1721338559870,15.3731,158.19,158.16,21.70138429]
[1721338560262,15.3731,158.19,158.16,12.29]
[1721338560462,15.3731,158.19,158.16,21.70138429]
[1721338560983,15.3731,158.19,158.16,12.29]
[1721338561187,15.3731,158.19,158.16,21.70138429]
[1721338561481,15.3731,158.19,158.16,9.41138429]
[1721338561678,15.3731,158.19,158.15,21.70101149]
[1721338561884,15.3731,158.19,158.16,20.0]
[1721338562372,15.3731,158.19,158.16,32.29]
[1721338564194,15.3731,158.19,158.16,41.70101149]
[1721338564373,15.3731,158.19,158.16,32.29]
[1721338564571,15.3731,158.19,158.16,41.70101149]
[1721338564871,15.3731,158.19,158.16,32.29]
[1721338565078,15.3731,158.19,158.16,41.70416811]